Workbook

Sheet 09.12.2016
A1: Название | B1: Цена (розн.) | C1: Количество товара на начало смены | D1: Возврат товара на склад | E1: Продано через КАССУ | F1: Передано "Аксиомус" | G1: Передано "DPD" | H1: Всего продано (шт.) | I1: Количество товара на конец смены | J1: В кассе наличных (руб.) | K1: Выбито чеков за товар на сумму | L1: Выручка (общ.)
A2: Серия ELLE BY BEURER
A3: Зеркало Beurer FCE79 косметическое | B3: 3800 | C3: 100 | D3: 2 | E3: 3 | F3: 3 | G3: 2 | H3: =E3+F3+G3 -> 8 | I3: =C3-H3+D3 -> 94 | J3: =B3*E3 -> 11400 | K3: =(E3*B3)+(F3*B3) -> 22800 | L3: =H3*B3 -> 30400
A4: Зеркало Beurer BS05 косметическое | B4: 570 | H4: 0 | J4: 0 | K4: 0 | L4: 0
A5: Маникюрный набор МР05 | B5: 890 | H5: 0 | J5: 0 | K5: 0 | L5: 0
A6: Маникюрно-педикюрный набор Beurer MPE60 (9 насадок) | B6: 3800 | H6: 0 | J6: 0 | K6: 0 | L6: 0
A7: Маникюрно-педикюрный набор Beurer MPE100 (10 насадок) | B7: 9500 | H7: 0 | J7: 0 | K7: 0 | L7: 0
A8: Прибор для удаления мозолей Beurer MPE50 | B8: 2900 | H8: 0 | J8: 0 | K8: 0 | L8: 0
A9: Эпилятор HLE60 | B9: 3000 | H9: 0 | J9: 0 | K9: 0 | L9: 0
A10: Прибор для сушки ногтей Beurer MPE58 | B10: 4100 | H10: 0 | J10: 0 | K10: 0 | L10: 0
A11: Массажная щетка для лица Beurer FCE60 | B11: 2350 | H11: 0 | J11: 0 | K11: 0 | L11: 0
A12: Фен для волос Beurer HDE30 | B12: 1850 | H12: 0 | J12: 0 | K12: 0 | L12: 0
A13: Мультистайлер для волос BEURER HTE50 | B13: 2000 | H13: 0 | J13: 0 | K13: 0 | L13: 0
A14: Парафиновая ванночка Beurer MPE70 | B14: 3100 | H14: 0 | J14: 0 | K14: 0 | L14: 0
A15: Электробритва женская BEURER HLE30 | B15: 2250 | H15: 0 | J15: 0 | K15: 0 | L15: 0
A16: Прибор для удаления волос воском BEURER HLE40 | B16: 2565 | H16: 0 | J16: 0 | K16: 0 | L16: 0
A17: Расходные и перевязочные материалы
A18: Мочеприемник носимый ножной Люкс 750 мл, длина трубки 28 см, Apexmed | B18: 225 | H18: =E18+F18+G18 -> 0 | J18: =B18*E18 -> 0 | K18: =(E18*B18)+(F18*B18) -> 0 | L18: =H18*B18 -> 0
A19: Мочеприемник носимый ножной Люкс 750 мл, длина трубки 50 см, Apexmed | B19: 155 | H19: 0 | J19: 0 | K19: 0 | L19: 0
A20: Мочеприемник прикроватный 1000 мл, Apexmed | B20: 41 | H20: 0 | J20: 0 | K20: 0 | L20: 0
A21: Мочеприемник прикроватный 2000 мл, Apexmed | B21: 44 | H21: 0 | J21: 0 | K21: 0 | L21: 0
A22: Мочеприемник прикроватный Люкс 2000 мл, Apexmed | B22: 192 | H22: 0 | J22: 0 | K22: 0 | L22: 0
A23: Катетер для самокатетеризации мужской лубрицированный Coloplast EasiCath 12 разм | B23: 80 | H23: 0 | J23: 0 | K23: 0 | L23: 0
A27: ВСЕГО: | E27: =SUM(E3:E26) -> 3 | F27: =SUM(F3:F26) -> 3 | G27: =SUM(G3:G26) -> 2 | H27: =SUM(H3:H26) -> 8 | J27: =SUM(J3:J26)+E37 -> 11400 | K27: =SUM(K3:K26) -> 22800 | L27: =SUM(L3:L26)+L37 -> 31050
B28: Цена (розн.) | E28: Продано через КАССУ | F28: Передано "Аксиомус" | G28: Передано "DPD" | H28: Всего продано (шт.) | J28: В кассе наличных (руб.) | K28: Выбито чеков за товар на сумму | L28: Выручка (общ.)
A30: Доставка | E30: Экспресс доставка | H30: доставка "Аксиомус"
A31: Доставка | B31: 100 | L31: =B31*(H31+E31) -> 0
A32: Доставка | B32: 300 | H32: 1 | L32: 300
A33: Доставка | B33: 350 | H33: 1 | L33: 350
A34: Доставка | B34: 400 | L34: 0
A35: Доставка | B35: 550 | L35: 0
A36: Доставка | B36: 800 | L36: 0
A37: ВСЕГО: | E37: =(E31*B31)+(E32*B32)+(E33*B33)+(E34*B34)+(E35*B35)+(E36*B36) -> 0 | H37: =(H31*B31)+(H32*B32)+(H33*B33)+(H34*B34)+(H35*B35)+(H36*B36) -> 650 | L37: =SUM(L31:L36) -> 650
J39: Z-ОТЧЕТ | L39: =K27+L37 -> 23450

Sheet 10.12.2016
A1: Название | B1: Цена (розн.) | C1: Количество товара на начало смены | D1: Возврат товара на склад | E1: Продано через КАССУ | F1: Передано "Аксиомус" | G1: Передано "DPD" | H1: Всего продано (шт.) | I1: Количество товара на конец смены | J1: В кассе наличных (руб.) | K1: Выбито чеков за товар на сумму | L1: Выручка (общ.)
A2: Серия ELLE BY BEURER
A3: Зеркало Beurer FCE79 косметическое | B3: 3800 | C3: =VLOOKUP(A3,cc,9) -> 0 | D3: 1 | E3: 1 | F3: 1 | G3: 1 | H3: =E3+F3+G3 -> 3 | I3: =C3-H3+D3 -> -2 | J3: =B3*E3 -> 3800 | K3: =(E3*B3)+(F3*B3) -> 7600 | L3: =H3*B3 -> 11400
A4: Зеркало Beurer BS05 косметическое | B4: 570 | H4: 0 | J4: 0 | K4: 0 | L4: 0
A5: Маникюрный набор МР05 | B5: 890 | H5: 0 | J5: 0 | K5: 0 | L5: 0
A6: Маникюрно-педикюрный набор Beurer MPE60 (9 насадок) | B6: 3800 | H6: 0 | J6: 0 | K6: 0 | L6: 0
A7: Маникюрно-педикюрный набор Beurer MPE100 (10 насадок) | B7: 9500 | H7: 0 | J7: 0 | K7: 0 | L7: 0
A8: Прибор для удаления мозолей Beurer MPE50 | B8: 2900 | H8: 0 | J8: 0 | K8: 0 | L8: 0
A9: Эпилятор HLE60 | B9: 3000 | H9: 0 | J9: 0 | K9: 0 | L9: 0
A10: Прибор для сушки ногтей Beurer MPE58 | B10: 4100 | H10: 0 | J10: 0 | K10: 0 | L10: 0
A11: Массажная щетка для лица Beurer FCE60 | B11: 2350 | H11: 0 | J11: 0 | K11: 0 | L11: 0
A12: Фен для волос Beurer HDE30 | B12: 1850 | H12: 0 | J12: 0 | K12: 0 | L12: 0
A13: Мультистайлер для волос BEURER HTE50 | B13: 2000 | H13: 0 | J13: 0 | K13: 0 | L13: 0
A14: Парафиновая ванночка Beurer MPE70 | B14: 3100 | H14: 0 | J14: 0 | K14: 0 | L14: 0
A15: Электробритва женская BEURER HLE30 | B15: 2250 | H15: 0 | J15: 0 | K15: 0 | L15: 0
A16: Прибор для удаления волос воском BEURER HLE40 | B16: 2565 | H16: 0 | J16: 0 | K16: 0 | L16: 0
A17: Расходные и перевязочные материалы
A18: Мочеприемник носимый ножной Люкс 750 мл, длина трубки 28 см, Apexmed | B18: 225 | H18: =E18+F18+G18 -> 0 | J18: =B18*E18 -> 0 | K18: =(E18*B18)+(F18*B18) -> 0 | L18: =H18*B18 -> 0
A19: Мочеприемник носимый ножной Люкс 750 мл, длина трубки 50 см, Apexmed | B19: 155 | H19: 0 | J19: 0 | K19: 0 | L19: 0
A20: Мочеприемник прикроватный 1000 мл, Apexmed | B20: 41 | H20: 0 | J20: 0 | K20: 0 | L20: 0
A21: Мочеприемник прикроватный 2000 мл, Apexmed | B21: 44 | H21: 0 | J21: 0 | K21: 0 | L21: 0
A22: Мочеприемник прикроватный Люкс 2000 мл, Apexmed | B22: 192 | H22: 0 | J22: 0 | K22: 0 | L22: 0
A23: Катетер для самокатетеризации мужской лубрицированный Coloplast EasiCath 12 разм | B23: 80 | H23: 0 | J23: 0 | K23: 0 | L23: 0
A27: ВСЕГО: | E27: =SUM(E3:E26) -> 1 | F27: =SUM(F3:F26) -> 1 | G27: =SUM(G3:G26) -> 1 | H27: =SUM(H3:H26) -> 3 | J27: =SUM(J3:J26)+E37 -> 3800 | K27: =SUM(K3:K26) -> 7600 | L27: =SUM(L3:L26)+L37 -> 12050
B28: Цена (розн.) | E28: Продано через КАССУ | F28: Передано "Аксиомус" | G28: Передано "DPD" | H28: Всего продано (шт.) | J28: В кассе наличных (руб.) | K28: Выбито чеков за товар на сумму | L28: Выручка (общ.)
A30: Доставка | E30: Экспресс доставка | H30: доставка "Аксиомус"
A31: Доставка | B31: 100 | L31: =B31*(H31+E31) -> 0
A32: Доставка | B32: 300 | H32: 1 | L32: 300
A33: Доставка | B33: 350 | H33: 1 | L33: 350
A34: Доставка | B34: 400 | L34: 0
A35: Доставка | B35: 550 | L35: 0
A36: Доставка | B36: 800 | L36: 0
A37: ВСЕГО: | E37: =(E31*B31)+(E32*B32)+(E33*B33)+(E34*B34)+(E35*B35)+(E36*B36) -> 0 | H37: =(H31*B31)+(H32*B32)+(H33*B33)+(H34*B34)+(H35*B35)+(H36*B36) -> 650 | L37: =SUM(L31:L36) -> 650
J39: Z-ОТЧЕТ | L39: =K27+L37 -> 8250
